Cogmind - Beta 16.1 @@@ ROGUE MODE // 2026.04.02 @ 13:56:46 Player: buwwet Result: Destroyed by D-53 Grenadier with Mini Grenade Launcher Performance ------------- Evolutions (0) 0 Regions Visited (2) 400 Robots Destroyed (9) 45 Value Destroyed (170) 170 Prototype IDs (0) 0 Alien Tech Used (0) 0 Bonus (0) 0 TOTAL SCORE: 615 Bonus ------- None Cogmind --------- Core Integrity 0/250 Matter 271/300 Energy 98/100 System Corruption 0% Temperature Cool (0) Movement Core (50) Location -10/Mines Parts ------- > --- POWER (1) -------- (None) > --- PROPULSION (2) --- (None) > --- UTILITY (2) ------ (None) > --- WEAPON (2) ------- (None) > --- INVENTORY (5) ---- Light Ion Engine Aluminum Leg Medium Laser Datajack Mace Peak State ------------ > --- POWER ------------ Light Ion Engine > --- PROPULSION ------- Light Treads Light Treads > --- UTILITY ---------- Small Storage Unit Targeting Computer > --- WEAPON ----------- Assault Rifle Mace > --- INVENTORY -------- Light Ion Engine Aluminum Leg Aluminum Leg Wheel Improved Heat Sink Medium Laser Light Assault Rifle Grenade Launcher [Rating: 9] Favorites ----------- Power Light Ion Engine Engine Light Ion Engine Propulsion Light Treads Treads Light Treads Utility Small Storage Unit Device Sensor Array Storage Small Storage Unit Processor Targeting Computer Weapon Assault Rifle Ballistic Gun Assault Rifle Launcher Grenade Launcher Impact Weapon Mace Build | -11 -10 -10 ------- Run | Yrd Mat Min Slots Evolved . | . . . Power . | . . . Propulsion . | . . . Utility . | . . . Weapon . | . . . Parts Attached 12 | 6 4 2 Power 2 | 1 1 . Engine 2 | 1 1 . Core . | . . . Reactor . | . . . Propulsion 3 | 2 . 1 Treads 3 | 2 . 1 Leg . | . . . Wheel . | . . . Hover . | . . . Flight . | . . . Utility 3 | 1 2 . Device 1 | . 1 . Storage 1 | 1 . . Processor 1 | . 1 . Hackware . | . . . Protection . | . . . Artifact . | . . . Weapon 4 | 2 1 1 Energy Gun . | . . . Energy Cannon . | . . . Ballistic Gun 2 | 2 . . Ballistic Cannon . | . . . Launcher 1 | . . 1 Special Weapon . | . . . Impact Weapon 1 | . 1 . Slashing Weapon . | . . . Piercing Weapon . | . . . Special Melee Weapon . | . . . Unidentified Prototypes . | . . . Parts Lost 6 | . . 6 Power 1 | . . 1 Propulsion 3 | . . 3 Utility . | . . . Weapon 2 | . . 2 Highest Loss Streak 6 | . . 6 To Critical Strikes . | . . . Average Backups 6 | 3 7 7 Power . | . 1 1 Propulsion 2 | 2 2 1 Utility . | . 1 1 Weapon 2 | . 2 3 Tool/Special . | . . . Unused Backups 10 | . 5 5 Power 1 | . . 1 Propulsion 5 | . 4 1 Utility 2 | . 1 1 Weapon 1 | . . 1 Tool/Special 1 | . . 1 Average Slot Usage (%) 98 | . 98 95 Engine 13 | . 14 11 Treads 27 | . 28 25 Device 4 | . 3 14 Storage 14 | . 14 14 Processor 7 | . 8 . Ballistic Gun 24 | . 25 21 Impact Weapon 2 | . 2 . Peak Build Rating 9 | 6 9 8 Average Rating 7 | 4 7 7 On Entrance 4 | . 6 8 Avg Prop Armor Cover (%) . | . . . Naked Turns 1 | . . 1 Heaviest Build 14 | 11 12 14 Greatest Support 40 | 40 40 40 Greatest Overweight (x) 1 | . . 1 Average Overweight (x) . | . . . Largest Inventory Capacity 8 | 8 8 8 Average Capacity 7 | 6 8 7 Most Carried 8 | 5 8 8 Average Carried 6 | 3 7 7 Final Capacity 8 | 8 8 5 Final Carried 8 | 5 8 5 Class Distribution -------------------- 100% | Mutant Dominant Class ---------------- Mutant | -10/Materials Mutant | -10/Mines Resources | -11 -10 -10 ----------- Run | Yrd Mat Min Matter Collected 378 | 225 153 . Remotely . | . . . Salvage Created 282 | 28 254 . Parts 21 | 3 18 . Haulers Intercepted 1 | . 1 . Recyclers Shooed . | . . . Parts Field Recycled . | . . . Retrieved Matter . | . . . Parts Self-Destructed . | . . . Prevented . | . . . Parts Restored . | . . . Kills | -11 -10 -10 ------- Run | Yrd Mat Min Combat Hostiles Destroyed 6 | . 6 . Melee 1 | . 1 . Guns 5 | . 5 . Classes Destroyed 5 | 1 4 . Tunneler 1 | 1 . . Hauler 1 | . 1 . Operator 1 | . 1 . Swarmer 3 | . 3 . Grunt 3 | . 3 . Best Kill Streak 3 | 1 3 . Combat Bots Only 3 | . 3 . Max Kills in Single Turn 1 | 1 1 . Gunslinging . | . . . Exploded . | . . . Melee 1 | . 1 . Uniques/NPCs Destroyed . | . . . Combat | -11 -10 -10 -------- Run | Yrd Mat Min Hostile Shots Fired 51 | . 25 26 Missed 13 | . 9 4 Hits 38 | . 16 22 Projectile 38 | . 16 22 AOE 20 | . . 20 Damage Taken 962 | . 184 778 Core 260 | . 33 227 Absorbed by Shields . | . . . Core Remaining (%) 100 | 100 . . Volleys Fired 20 | 3 14 3 Largest 2 | 2 2 2 Hottest 50 | 40 40 50 Shots Fired 40 | 6 28 6 Gun 37 | 6 28 3 Cannon . | . . . Launcher 3 | . . 3 Special . | . . . Kinetic 37 | 6 28 3 Thermal . | . . . Explosive 3 | . . 3 Electromagnetic . | . . . Robot Hit Streak 11 | 2 11 6 Robot Miss Streak 1 | 1 1 1 Penetration Max . | . . . Secondary Targets . | . . . Shots Hit Robots 33 | 3 25 5 Core Hits 17 | 2 12 3 Critical Kills . | . . . Critical Parts Destroyed . | . . . Critical Strikes . | . . . Melee Attacks 3 | . 3 . Impact 3 | . 3 . Slashing . | . . . Piercing . | . . . Sneak Attacks 1 | . 1 . Combat Hostiles . | . . . Follow-up Attacks . | . . . Damage Inflicted 541 | 24 331 186 Guns 287 | 24 225 38 Cannons . | . . . Explosions 148 | . . 148 Melee 106 | . 106 . Ramming . | . . . Kinetic 287 | 24 225 38 Thermal . | . . . Explosive 148 | . . 148 Electromagnetic . | . . . Impact 106 | . 106 . Slashing . | . . . Piercing . | . . . Highest Corruption . | . . . Average Corruption . | . . . Corruption Purged . | . . . Corruption Blocked . | . . . Overload Shots . | . . . Overflow Damage 28 | . 28 . Projectiles . | . . . Explosions . | . . . Melee 28 | . 28 . Knockbacks . | . . . Impact . | . . . Kinetic . | . . . Secondary . | . . . Self-Inflicted Damage . | . . . Shots . | . . . Rammed . | . . . Targets Rammed . | . . . Kicked . | . . . Crushed . | . . . Highest Temperature 18 | . 18 . Average Temperature 12 | . 12 . Received Heat Transfer 108 | . 81 27 Siege Activations . | . . . Martial Activations . | . . . Shielding Activations . | . . . Robots Disrupted . | . . . Combat Hostiles . | . . . Robots Corrupted 1 | . 1 . Combat Hostiles . | . . . Parts Fried . | . . . Impact Corruptions 1 | . 1 . Robots Melted . | . . . Combat Hostiles . | . . . Parts Melted . | . . . Heat Transferred . | . . . Parts Sabotaged . | . . . Parts Stolen . | . . . Parts Stripped . | . . . Power Chain Reactions . | . . . Alert | -11 -10 -10 ------- Run | Yrd Mat Min Maximum Alert Level . | . . . Low Security (%) 100 | 100 100 100 Level 1 . | . . . Level 2 . | . . . Level 3 . | . . . Level 4 . | . . . Level 5 . | . . . High Security . | . . . Max Security . | . . . Peak Influence 80 | 5 80 8 Initial 3 | . . 3 Average 17 | . 24 1 Influence Increases 201 | 5 184 12 Destroy 0b10 Robot/C 120 | . 120 . Destroy 0b10 Robot/NC 15 | 5 10 . Destroy Leader 32 | . 32 . Successful Hack 7 | . 7 . Destroy Structure 12 | . . 12 Lose Combat Pursuer 15 | . 15 . Influence Decreases 201 | 5 176 20 Entered New Map 5 | . . 5 Time Decay 184 | 5 176 3 Lost Part 12 | . . 12 Squads Dispatched 1 | . 1 . Investigation 1 | . 1 . Extermination . | . . . Reinforcement . | . . . Assault . | . . . Garrison . | . . . Intercept . | . . . Searches Triggered . | . . . Construction Impeded . | . . . Haulers Reinforced . | . . . Active Scanning Responses . | . . . Cargo Convoy Interrupts . | . . . Stealth | -11 -10 -10 --------- Run | Yrd Mat Min Distress Signals . | . . . Communications Jammed . | . . . Distress Signals . | . . . Times Spotted 14 | . 9 5 Peak Tracking Total 4 | . 3 4 Tactical Retreats 1 | . 1 . Traps | -11 -10 -10 ------- Run | Yrd Mat Min Traps Triggered 1 | . 1 . Indirectly . | . . . Trap Hack Attempts . | . . . Triggered . | . . . Disarmed . | . . . Reprogrammed . | . . . Reused . | . . . Traps Extracted . | . . . Installed . | . . . Triggered . | . . . Machines | -11 -10 -10 ---------- Run | Yrd Mat Min Machines Disabled . | . . . Max in Single Turn . | . . . Machines Repaired . | . . . Machines Dismantled . | . . . Machines Sabotaged . | . . . Overloaded Fab Kills . | . . . Hacking | -11 -10 -10 --------- Run | Yrd Mat Min Machines Accessed 3 | . 3 . Terminals 1 | . 1 . Fabricators . | . . . Repair Stations . | . . . Recycling Units 2 | . 2 . Scanalyzers . | . . . Garrison Access . | . . . Total Hacks 7 | . 7 . Successful 6 | . 6 . Failed 1 | . 1 . Catastrophic . | . . . Database Lockouts . | . . . Manual . | . . . Terminals 3 | . 3 . Fabricators . | . . . Repair Stations . | . . . Recycling Units 4 | . 4 . Scanalyzers . | . . . Garrison Access . | . . . Terminal Hacks 3 | . 3 . Emergency Access Points 1 | . 1 . Patrol Status 1 | . 1 . Hauler Manifests 1 | . 1 . Fabricator Hacks . | . . . Repair Station Hacks . | . . . Recycling Unit Hacks 3 | . 3 . Report Inventory 2 | . 2 . Retrieve Components 1 | . 1 . Scanalyzer . | . . . Garrison Access Hacks . | . . . Unauthorized Hacks . | . . . Terminals . | . . . Fabricators . | . . . Repair Stations . | . . . Recycling Units . | . . . Scanalyzers . | . . . Garrison Access . | . . . Data Cores Recovered 1 | . 1 . Used 1 | . 1 . Hacking Detections 2 | . 2 . Full Trace Events . | . . . Feedback Events . | . . . Feedback Blocked . | . . . Robot Schematics Acquired . | . . . Robots Built . | . . . Authchips . | . . . Time . | . . . Total Robot Build Rating . | . . . Part Schematics Acquired . | . . . Parts Built . | . . . Authchips . | . . . Time . | . . . Total Part Build Rating . | . . . Part Studies Acquired . | . . . Parts Repaired . | . . . Time . | . . . Parts Recycled . | . . . Recycled Matter . | . . . Retrieved Matter . | . . . Retrieved Components 3 | . 3 . Parts Scanalyzed . | . . . Part Schematics Acquired . | . . . Parts Damaged . | . . . Bothacking | -11 -10 -10 ------------ Run | Yrd Mat Min Used RIF Installer . | . . . Robots Hacked . | . . . Non-combat . | . . . Combat . | . . . Robot Hacks Applied . | . . . Relay Couplers Released . | . . . Fabnet Peak Effective % . | . . . Robots Rewired . | . . . Allies Hacked . | . . . Hacks Repelled . | . . . Allies | -11 -10 -10 -------- Run | Yrd Mat Min Total Allies . | . . . Largest Group . | . . . Highest-Rated Group . | . . . Highest-Rated Ally . | . . . Total Orders . | . . . Ally Attacks . | . . . Total Damage . | . . . Kills . | . . . Allies Corrupted . | . . . Allies Melted . | . . . Intel | -11 -10 -10 ------- Run | Yrd Mat Min Active Infowar (turns) 176 | . 121 55 Sensors 176 | . 121 55 Robot Analysis Total . | . . . Derelict Logs Recovered . | . . . Drone Launches . | . . . Drone Recoveries . | . . . Exploration | -11 -10 -10 ------------- Run | Yrd Mat Min Turns Passed 616 | 113 447 56 Spaces Moved 321 | 59 234 28 Core 8 | 4 . 4 Treads 313 | 55 234 24 Legs . | . . . Wheels . | . . . Hover . | . . . Flight . | . . . Fastest Speed 50 | 50 160 50 Average Speed 157 | 152 160 146 Slowest Speed 160 | 160 160 160 Overloaded Moves . | . . . Propulsion Burnouts . | . . . Robots Hopped . | . . . Potential Cave-ins 2 | . . 2 Cave-ins Triggered . | . . . Exploration Rate (%) 20 | 3 43 16 Regions Visited 2 Branch Regions 1 Pre-discovered Areas . | . . . Known Exits Taken . | . . . Unknown Exits Taken 2 | 1 1 . Scrap Searched . | . . . Spaces Dug . | . . . Terrain Destroyed 13 | . . 13 Melee . | . . . Projectile . | . . . AOE 13 | . . 13 Terrain Rammed . | . . . Walls Destroyed . | . . . Machines Disabled . | . . . Actions | -11 -10 -10 --------- Run | Yrd Mat Min Total 391 | 74 280 37 Wait 11 | 1 6 4 Move 319 | 58 233 28 Hop . | . . . Pick Up 17 | 6 11 . Fast Attach 5 | 5 . . Attach 4 | 1 2 1 Detach . | . . . Swap 4 | . 3 1 Drop 8 | . 8 . Fire 20 | 3 14 3 Melee 3 | . 3 . Ram . | . . . Kick . | . . . Crush . | . . . Escape Stasis . | . . . Rewire . | . . . Trap . | . . . Miscellaneous . | . . . Route ------- -11/Scrapyard -10/Materials (discovered 2 exits: [*Mat] / [*Min]) -10/Mines History --------- Turn | Location | Event 5 | -11/Scrapyard | Discovered new exit (range 15) 114 | -11/Scrapyard | Entered Materials 271 | -10/Materials | Discovered new exit (range 16) 331 | -10/Materials | Build established: Mutant 379 | -10/Materials | Discovered new exit (range 11) 561 | -10/Materials | Entered Mines 562 | -10/Mines | Assembled infested the area 614 | -10/Mines | Core integrity fell below 50% 616 | -10/Mines | Core integrity fell below 20% 616 | -10/Mines | Released all parts (2) 617 | -10/Mines | Destroyed by D-53 Grenadier with Mini Grenade Launcher Last Messages --------------- GOAL=ESCAPE Something is scanning the area. 00562_ ALERT: Infestation in the mines, dispatching Demolisher response squad. 00591_ C-45 Heavy ARC bursts open, deploying its payload. 00591_ D-53 Grenadier unfolds itself. 00594_ Lgt. Treads destroyed. 00599_ The unstable cave ceiling collapses. 00609_ Lgt. Ion Engine destroyed. 00609_ Lgt. Treads destroyed. 00611_ The unstable cave ceiling collapses. 00613_ Grenade Launcher destroyed. 00613_ Assault Rifle destroyed. 00613_ G-34 Mercenary destroyed. 00613_ Lgt. Treads destroyed. 00616_ The unstable cave ceiling collapses. 00616_ Released Sml. Storage Unit. 00616_ Released Sensor Array. 00617_ The unstable cave ceiling collapses. Map ----- +----------------------------------------------------+ | | | ?????????????????????????????????????????????????? | | ?????????????????????????????????????????????????? | | ?????????????????????????????????????????????????? | | ?????????????????????????????#???????????????????? | | ????????????????????????????? ##?????????????????? | | ???????????????????????????? ??????????????? | | ??????????????????????????? ?????????????? | | ??????????????????????????? ??????????????? | | ?????????????????????????## ??????????????? | | ????????????????????????? ???????????????? | | ?????????????????????????# ????????????????? | | ?????????????????????????# #????????????????? | | ????????????????????? ???# g #????????????????? | | ?????????????????????? ### #????????????????? | | ??????????????????????? % #?????????????????? | | ???????????????????????? = #??????????????????? | | ?????????????????????????# ###?????????????????? | | ???????????????????# ##### ###???????????????? | | ???????????????????# #???????????????? | | ???????????????????# #### ##??????????????? | | ??????????????????????## [ ####???????????? | | ??????????????????????# !! ##??????????? | | ?????????????????????## !# #??????????? | | ?????????????# ### ##?????????? | | ?????????????# @ ##????????? | | ?????????????# ##???????? | | ?????????????## ### d #???????? | | ??????????????## ?# d ##??????? | | ???????????????# ### t ?## #??????? | | ???????????????## ???## #??## # ##??????? | | ????????????????##?????## #???# #???????? | | ????????????????????????# #???## ## #???????? | | ????????????????????????# ????## # #???????? | | ????????????????????????###?????## #???????? | | ?????????????????????????????????## #???????? | | ??????????????????????????????????## % #???????? | | ???????????????????????????????????# #???????? | | ???????????????????????????????????# ???????? | | ??????????????????????????????????? #??????? | | ??????????????????????????????????? #??????? | | ??????????????????????????????????? ??????? | | ??????????????????????????????????? ??????? | | ??????????????????????????????????? #?????? | | ??????????????????????????????????## #?????? | | ????????????????????????????????????# ???????? | | ????????????????????????????????????? ?????????? | | ?????????????????????????????????????????????????? | | ?????????????????????????????????????????????????? | | ?????????????????????????????????????????????????? | +----------------------------------------------------+ Best States ------------- Heat Dissipation 25 Energy Generation 10 Energy Capacity 125 Matter Stores 300 Matter Capacity 300 Sight Range 16 Robot Scan Range 14 Terrain Scan Density 10 Evasion (%) 40 Targeting Accuracy 5 Recoil Reduction 2 Item Schematics ----------------- None Robot Schematics ------------------ None Fabricated ------------ Nothing Repaired ---------- Nothing Studied --------- None Alien Tech Used ----------------- None Achievements -------------- None Challenges ------------ None Game ------ Seed TechGammaBlaster Manual? 0 Play Time 00:07:15 Cumulative 46.4 hours Start 2026.04.02 @ 13:50:34 End 2026.04.02 @ 13:56:46 Sessions 1 Manual Loads 0 Difficulty Rogue Special Mode None Game No. 54 Rogue 54 Adventurer 0 Explorer 0 Win Type - Total 0 Types 0/0/0/0/0/0/0/0/0/0 Lore% 24 Gallery% 31 Achievement% 21 Wizard Run 0 Options --------- Layout 1 ASCII 0 Keyboard 0 Movement Arrows Keybinds 0 Fullscreen 2 Font 24/Terminus Map View 50x35 Zoom Use 0% Tactical HUD 1 Map Filters NONE Filters NONE Steam 1 RUN: aac27b27-99b1-4d96-a4e2-7cb6a1d91fbd